bitfinex/quotes_SOLUSD_20230116
["timestamp","ask_amount","ask_price","bid_price","bid_amount"]
[1673900604502,20.0,23.656,23.635,17.0]
[1673900605241,20.0,23.655,23.635,17.0]
[1673900605458,17.0,23.654,23.634,21.46196354]
[1673900605662,17.0,23.654,23.63,20.0]
[1673900605663,20.0,23.653,23.63,20.0]
[1673900605984,20.0,23.653,23.631,17.0]
[1673900606194,20.0,23.655,23.631,17.0]
[1673900606512,20.0,23.655,23.633,20.0]
[1673900606715,20.0,23.655,23.634,17.0]
[1673900606913,20.0,23.655,23.635,20.0]
[1673900607124,20.0,23.655,23.636,17.0]
[1673900607551,20.0,23.655,23.636,38.46196354]
[1673900607754,109.3706,23.657,23.637,41.46196354]
[1673900607973,109.3706,23.657,23.638,37.0]
[1673900608703,20.0,23.67,23.638,37.0]
[1673900608918,20.0,23.659,23.64,20.0]
[1673900609146,20.0,23.659,23.642,20.0]
[1673900609457,20.0,23.659,23.643,17.0]
[1673900610915,20.0,23.658,23.641,17.0]
[1673900611239,17.0,23.657,23.63,20.0]
[1673900611434,20.0,23.656,23.633,41.46196354]
[1673900611647,17.0,23.655,23.633,41.46196354]
[1673900611857,20.0,23.654,23.633,41.46196354]
[1673900612297,20.0,23.653,23.633,41.46196354]
[1673900612630,20.0,23.653,23.635,41.46196354]
[1673900613874,20.0,23.658,23.636,17.0]
[1673900613875,20.0,23.656,23.636,17.0]
[1673900614197,17.0,23.655,23.636,17.0]
[1673900614416,20.0,23.653,23.636,17.0]
[1673900614603,20.0,23.654,23.636,17.0]
[1673900614816,20.0,23.654,23.637,20.0]
[1673900615039,21.47616219,23.707,23.64,81.56]
[1673900615251,118.585,23.685,23.65,16.33]
[1673900615465,118.585,23.685,23.651,17.0]
[1673900615771,20.0,23.684,23.653,20.0]
[1673900615990,20.0,23.684,23.654,37.0]
[1673900616197,20.0,23.684,23.655,20.0]
[1673900616387,118.585,23.685,23.656,17.0]
[1673900616591,20.0,23.683,23.658,20.0]
[1673900616920,118.585,23.685,23.659,17.0]
[1673900617247,118.585,23.685,23.659,125.49703021]
[1673900617433,118.585,23.685,23.659,17.0]
[1673900617645,20.0,23.684,23.66,20.0]
[1673900617860,20.0,23.684,23.661,17.0]
[1673900618282,20.0,23.683,23.662,56.88895621]
[1673900618493,20.0,23.683,23.664,20.0]
[1673900618698,20.0,23.682,23.661,17.0]
[1673900619240,20.0,23.682,23.655,41.46196354]
[1673900619577,20.0,23.682,23.656,17.0]
[1673900619757,20.0,23.683,23.657,20.0]
[1673900619967,20.0,23.682,23.658,17.0]
[1673900620197,20.0,23.682,23.659,20.0]
[1673900620498,20.0,23.682,23.659,21.46196354]
[1673900620711,20.0,23.682,23.655,20.0]
[1673900620908,20.0,23.68,23.656,20.0]
[1673900621120,20.0,23.68,23.655,41.46196354]
[1673900621121,37.0,23.679,23.655,41.46196354]
[1673900621331,20.0,23.678,23.655,20.0]
[1673900621548,20.0,23.677,23.657,20.0]
[1673900622398,17.0,23.676,23.657,20.0]
[1673900622585,20.0,23.677,23.657,20.0]
[1673900622586,20.0,23.675,23.657,20.0]
[1673900622798,20.0,23.677,23.657,20.0]
[1673900623009,20.0,23.677,23.657,41.46196354]
[1673900623325,20.0,23.679,23.658,17.0]
[1673900623740,20.0,23.679,23.659,20.0]
[1673900623952,20.0,23.679,23.66,17.0]
[1673900624594,20.0,23.682,23.66,59.92392708]
[1673900624800,20.0,23.681,23.66,152.03716354]
[1673900625019,20.0,23.681,23.661,20.0]
[1673900625212,20.0,23.68,23.662,17.0]
[1673900628602,20.0,23.682,23.663,20.0]
[1673900628921,20.0,23.682,23.664,17.0]
[1673900629332,20.0,23.683,23.665,20.0]
[1673900629525,20.0,23.684,23.666,17.0]
[1673900629733,20.0,23.684,23.659,21.46196354]
[1673900630069,20.0,23.684,23.661,20.0]
[1673900630070,37.0,23.683,23.661,20.0]
[1673900630292,20.0,23.682,23.661,20.0]
[1673900630475,20.0,23.68,23.661,20.0]
[1673900630683,20.0,23.679,23.65,20.0]
[1673900630893,17.0,23.678,23.651,109.025]
[1673900631103,20.0,23.676,23.651,109.025]
[1673900631311,37.0,23.675,23.651,109.025]
[1673900631633,20.0,23.674,23.651,109.025]
[1673900631844,37.0,23.673,23.651,109.025]
[1673900632173,20.0,23.672,23.651,109.025]
[1673900632489,35.5,23.671,23.652,20.0]
[1673900632676,35.5,23.671,23.651,109.025]
[1673900632888,20.0,23.67,23.652,20.0]
[1673900633213,18.5,23.671,23.652,20.0]
[1673900633624,111.897,23.673,23.652,20.0]
[1673900633836,17.0,23.672,23.654,20.0]
[1673900634045,17.0,23.672,23.655,17.0]
[1673900634274,20.0,23.671,23.655,17.0]
[1673900634682,20.0,23.672,23.655,17.0]
[1673900635325,20.0,23.671,23.655,17.0]
[1673900635953,20.0,23.671,23.653,17.0]
[1673900636477,20.0,23.671,23.652,17.0]
[1673900636999,17.0,23.67,23.642,20.0]
[1673900637215,20.0,23.669,23.644,110.0929]
[1673900637418,17.0,23.668,23.644,131.55486354]
[1673900637631,40.0,23.667,23.644,131.55486354]
[1673900637956,20.0,23.665,23.644,131.55486354]
[1673900638150,20.0,23.665,23.644,110.0929]
[1673900638378,20.0,23.663,23.644,110.0929]
[1673900638570,20.0,23.662,23.644,110.0929]
[1673900638780,20.0,23.662,23.645,20.0]
[1673900639532,20.0,23.662,23.645,41.46196354]
[1673900639748,20.0,23.666,23.645,41.46196354]
[1673900640069,20.0,23.666,23.647,20.0]
[1673900640252,20.0,23.666,23.649,20.0]
[1673900640678,20.0,23.67,23.649,20.0]
[1673900640890,17.0,23.669,23.649,20.0]
[1673900641098,20.0,23.668,23.649,20.0]
[1673900641421,17.0,23.667,23.649,20.0]
[1673900641628,17.0,23.667,23.647,21.46196354]
[1673900641837,20.0,23.665,23.63,16.31]
[1673900642052,37.0,23.664,23.642,21.46196354]
[1673900642258,20.0,23.663,23.642,21.46196354]
[1673900642488,37.0,23.662,23.642,21.46196354]
[1673900642789,37.0,23.662,23.645,20.0]
[1673900643404,20.0,23.661,23.642,21.46196354]
[1673900643618,20.0,23.66,23.642,21.46196354]
[1673900643944,20.0,23.66,23.645,17.0]
[1673900644166,118.1674,23.66,23.645,17.0]
[1673900644350,20.0,23.659,23.645,38.46196354]
[1673900644564,20.0,23.659,23.646,20.0]
[1673900644774,20.0,23.659,23.648,20.0]
[1673900645204,20.0,23.659,23.649,17.0]
[1673900645627,20.0,23.659,23.646,20.0]
[1673900647095,20.0,23.659,23.647,17.0]
[1673900648256,20.0,23.659,23.647,38.46196354]
[1673900648452,20.0,23.665,23.648,20.0]
[1673900648659,20.0,23.665,23.649,17.0]
[1673900648982,20.0,23.665,23.65,20.0]
[1673900649192,20.0,23.665,23.652,20.0]
[1673900649404,116.9668,23.666,23.652,20.0]
[1673900649629,20.0,23.685,23.653,17.0]
[1673900649814,113.234,23.679,23.654,20.0]
[1673900650024,20.0,23.678,23.655,17.0]
[1673900650243,20.0,23.678,23.656,20.0]
[1673900650457,20.0,23.678,23.655,21.46196354]
[1673900650665,20.0,23.678,23.652,20.0]
[1673900650872,20.0,23.672,23.653,17.0]
[1673900651092,20.0,23.672,23.653,49.50586173]
[1673900651520,20.0,23.672,23.653,17.0]
[1673900651936,20.0,23.67,23.653,17.0]
[1673900652127,20.0,23.669,23.653,17.0]
[1673900652651,20.0,23.669,23.655,20.0]
[1673900652869,20.0,23.672,23.656,17.0]
[1673900653084,20.0,23.672,23.657,20.0]
[1673900653298,20.0,23.672,23.659,20.0]
[1673900653540,20.0,23.672,23.66,17.0]
[1673900654058,20.0,23.671,23.644,130.0929]
[1673900654269,20.0,23.671,23.65,41.46196354]
[1673900655217,40.0,23.672,23.65,41.46196354]
[1673900655403,20.0,23.671,23.65,41.46196354]
[1673900655831,17.0,23.67,23.65,41.46196354]
[1673900656041,20.0,23.669,23.644,130.0929]
[1673900656261,20.0,23.667,23.644,110.0929]
[1673900656468,37.0,23.666,23.644,110.0929]
[1673900656662,20.0,23.665,23.645,20.0]
[1673900656875,17.0,23.664,23.645,20.0]
[1673900657091,20.0,23.663,23.645,20.0]
[1673900657306,17.0,23.662,23.645,20.0]
[1673900657529,20.0,23.661,23.645,20.0]
[1673900658162,17.0,23.66,23.644,110.0929]
[1673900658476,17.0,23.66,23.64,20.0]
[1673900658477,20.0,23.658,23.64,20.0]
[1673900658664,20.0,23.658,23.639,21.46196354]
[1673900658875,20.0,23.658,23.637,109.0511]
[1673900659084,20.0,23.658,23.638,61.46196354]
[1673900659324,20.0,23.658,23.637,109.0511]
[1673900659510,37.0,23.657,23.637,109.0511]
[1673900659723,20.0,23.656,23.637,109.0511]
[1673900660043,20.0,23.654,23.637,109.0511]
[1673900660233,20.0,23.653,23.637,109.0511]
[1673900660659,20.0,23.651,23.637,109.0511]
[1673900660978,20.0,23.65,23.637,109.0511]
[1673900661203,20.0,23.65,23.634,21.46196354]
[1673900661412,20.0,23.65,23.626,130.9869]
[1673900661726,20.0,23.65,23.63,21.46196354]
[1673900661931,20.0,23.65,23.631,20.0]
[1673900662139,20.0,23.657,23.631,20.0]
[1673900662355,17.0,23.656,23.632,21.46196354]
[1673900662547,20.0,23.655,23.634,20.0]
[1673900662760,17.0,23.654,23.635,17.0]
[1673900663073,20.0,23.653,23.636,20.0]
[1673900663290,20.0,23.653,23.638,20.0]
[1673900664253,20.0,23.657,23.638,20.0]
[1673900665297,17.0,23.656,23.638,20.0]
[1673900665507,20.0,23.655,23.638,20.0]
[1673900666144,20.0,23.656,23.638,20.0]
[1673900666347,20.0,23.665,23.639,17.0]
[1673900666559,20.0,23.659,23.64,20.0]
[1673900666748,20.0,23.659,23.641,17.0]
[1673900666963,20.0,23.659,23.642,20.0]
[1673900667190,20.0,23.659,23.644,20.0]
[1673900667389,20.0,23.659,23.645,17.0]
[1673900669083,20.0,23.667,23.646,32.50586173]
[1673900669084,20.0,23.665,23.646,32.50586173]
[1673900669305,20.0,23.665,23.647,37.0]
[1673900670429,20.0,23.666,23.647,37.0]
[1673900672013,37.26408768,23.665,23.64,20.0]
[1673900672235,20.0,23.663,23.638,20.0]
[1673900672448,37.0,23.662,23.638,20.0]
[1673900672651,77.52817536,23.662,23.638,20.0]
[1673900672867,20.0,23.661,23.638,20.0]
[1673900673074,20.0,23.659,23.638,20.0]
[1673900673389,17.0,23.658,23.638,20.0]
[1673900673580,9.68644445,23.657,23.638,20.0]
[1673900673786,17.0,23.656,23.638,20.0]
[1673900674015,17.0,23.658,23.639,17.0]
[1673900674342,17.0,23.659,23.64,20.0]
[1673900674555,17.0,23.659,23.64,52.50586173]
[1673900674868,17.0,23.659,23.642,20.0]
[1673900675049,224.9259,23.66,23.642,20.0]
[1673900675263,114.9729,23.66,23.643,17.0]
[1673900675474,114.9729,23.66,23.643,70.96782527]
[1673900675706,20.0,23.672,23.644,73.96782527]
[1673900676011,139.0589,23.671,23.645,58.46196354]
[1673900676233,20.0,23.67,23.646,20.0]
[1673900676438,20.0,23.668,23.648,20.0]
[1673900676628,17.0,23.667,23.649,17.0]
[1673900676840,139.0589,23.671,23.65,20.0]
[1673900677059,119.0589,23.671,23.652,20.0]
[1673900677272,20.0,23.67,23.651,32.50586173]
[1673900677696,20.0,23.67,23.653,32.50586173]
[1673900678232,20.0,23.669,23.653,32.50586173]
[1673900678421,17.0,23.668,23.653,32.50586173]
[1673900678626,17.0,23.668,23.65,37.87932356]
[1673900678836,17.0,23.668,23.647,38.40684258]
[1673900678837,20.0,23.667,23.645,116.4509]
[1673900679047,20.0,23.665,23.642,21.46196354]
[1673900679385,37.0,23.664,23.64,20.0]
[1673900679586,20.0,23.663,23.64,20.0]
[1673900679796,20.0,23.661,23.64,20.0]
[1673900680006,146.7355,23.66,23.64,20.0]
[1673900680417,20.0,23.659,23.641,17.0]
[1673900681268,146.7355,23.66,23.641,38.46196354]
[1673900681484,20.0,23.659,23.641,38.46196354]
[1673900682432,146.7355,23.66,23.641,38.46196354]
[1673900682624,146.7355,23.66,23.642,20.0]
[1673900683894,129.7355,23.66,23.643,17.0]
[1673900684113,129.7355,23.66,23.644,20.0]
[1673900686304,129.7355,23.66,23.643,17.0]
[1673900687891,20.0,23.659,23.643,17.0]
[1673900688091,20.0,23.659,23.631,20.0]
[1673900688309,37.0,23.658,23.634,111.4149]
[1673900689052,20.0,23.657,23.635,41.46196354]
[1673900689245,17.0,23.656,23.635,41.46196354]
[1673900689449,17.0,23.656,23.636,17.0]
[1673900689664,20.0,23.654,23.636,17.0]
[1673900689878,37.0,23.653,23.636,17.0]
[1673900691048,37.0,23.653,23.637,20.0]
[1673900692726,20.0,23.653,23.639,20.0]
[1673900692925,20.0,23.658,23.639,20.0]
[1673900693133,17.0,23.657,23.639,20.0]
[1673900693470,20.0,23.656,23.639,20.0]
[1673900694295,20.0,23.656,23.638,26.65164505]
[1673900694502,20.0,23.654,23.637,20.0]
[1673900694726,20.0,23.653,23.627,20.0]
[1673900694950,17.0,23.652,23.635,20.0]
[1673900695141,20.0,23.651,23.635,20.0]
[1673900695350,17.0,23.65,23.627,20.0]
[1673900695561,20.0,23.649,23.627,20.0]
[1673900696627,20.0,23.649,23.634,111.4149]
[1673900696836,20.0,23.649,23.635,20.0]
[1673900699658,20.0,23.657,23.635,20.0]
[1673900699980,20.0,23.655,23.635,20.0]
[1673900700195,37.0,23.654,23.635,20.0]
[1673900702496,20.0,23.654,23.636,26.65164505]
[1673900702702,20.0,23.659,23.638,20.0]
[1673900702939,20.0,23.659,23.639,17.0]
[1673900703460,20.0,23.659,23.64,20.0]
[1673900703647,20.0,23.659,23.641,17.0]
[1673900703858,20.0,23.659,23.642,20.0]
[1673900704172,20.0,23.669,23.643,17.0]
[1673900704381,20.0,23.669,23.644,20.0]
[1673900704586,20.0,23.669,23.645,17.0]
[1673900704798,20.0,23.669,23.646,20.0]
[1673900705007,20.0,23.669,23.647,17.0]
[1673900705244,20.0,23.667,23.648,20.0]
[1673900705555,20.0,23.666,23.649,17.0]
[1673900708289,20.0,23.666,23.648,37.0]
[1673900708512,20.0,23.668,23.648,37.0]
[1673900708691,110.6136,23.67,23.65,21.46196354]
[1673900709024,20.0,23.669,23.651,67.20497838]
[1673900709235,127.8,23.69,23.651,67.20497838]
[1673900709236,115.3758,23.683,23.651,67.20497838]
[1673900709443,20.0,23.682,23.652,71.66694192]
[1673900709640,20.0,23.682,23.653,17.0]
[1673900709851,20.0,23.672,23.653,38.46196354]
[1673900710172,20.0,23.672,23.648,20.0]
[1673900710389,17.0,23.671,23.649,21.46196354]
[1673900710591,40.0,23.67,23.649,21.46196354]
[1673900710920,17.0,23.669,23.649,21.46196354]
[1673900711106,20.0,23.668,23.648,20.0]
[1673900711318,20.0,23.667,23.649,38.46196354]
[1673900712278,20.0,23.666,23.647,111.679]
[1673900712602,20.0,23.666,23.63,16.28]
[1673900712800,37.26408768,23.665,23.635,131.422]
[1673900713227,20.0,23.663,23.635,131.422]
[1673900713425,132.9283,23.662,23.635,131.422]
[1673900713645,132.9283,23.662,23.637,20.0]
[1673900713646,20.0,23.661,23.637,20.0]
[1673900713854,20.0,23.661,23.638,20.0]
[1673900713855,17.0,23.66,23.638,20.0]
[1673900714083,20.0,23.659,23.638,20.0]
[1673900714280,20.0,23.659,23.64,20.0]
[1673900714490,20.0,23.659,23.641,17.0]
[1673900714698,20.0,23.659,23.642,20.0]
[1673900715024,20.0,23.659,23.643,17.0]
[1673900715243,20.0,23.659,23.642,20.0]
[1673900715851,17.0,23.658,23.642,20.0]
[1673900716076,17.0,23.658,23.64,20.0]
[1673900716483,20.0,23.657,23.639,20.0]
[1673900716691,17.0,23.656,23.639,20.0]
[1673900717328,17.0,23.656,23.635,111.422]
[1673900717533,17.0,23.656,23.629,109.7117]
[1673900717534,40.26408768,23.655,23.629,109.7117]
[1673900717748,37.0,23.654,23.629,109.7117]
[1673900717959,96.61566948,23.654,23.629,109.7117]
[1673900718170,20.0,23.653,23.634,141.61987838]
[1673900718598,20.0,23.653,23.635,20.0]
[1673900719322,17.0,23.652,23.635,20.0]
[1673900719535,20.0,23.651,23.635,20.0]
[1673900720160,20.0,23.656,23.635,20.0]
[1673900720376,17.0,23.655,23.635,20.0]
[1673900720589,20.0,23.654,23.635,20.0]
[1673900720799,17.0,23.653,23.635,20.0]
[1673900720997,20.0,23.654,23.635,20.0]
[1673900720998,20.0,23.652,23.635,20.0]
[1673900721203,20.0,23.654,23.635,20.0]
[1673900721410,20.0,23.654,23.636,17.0]
[1673900721633,20.0,23.657,23.636,17.0]
[1673900721634,20.0,23.656,23.637,20.0]
[1673900721843,20.0,23.654,23.637,20.0]
[1673900722058,40.0,23.654,23.636,17.0]
[1673900722271,20.0,23.652,23.635,20.0]
[1673900722484,37.0,23.653,23.637,20.0]
[1673900723095,39.3515818,23.656,23.637,20.0]
[1673900723310,20.0,23.655,23.638,17.0]
[1673900723643,20.0,23.656,23.638,17.0]
[1673900723839,20.0,23.657,23.638,17.0]
[1673900724579,17.0,23.656,23.638,17.0]
[1673900724794,20.0,23.655,23.638,17.0]
[1673900725434,17.0,23.656,23.638,17.0]
[1673900725650,20.0,23.655,23.635,20.0]
[1673900725875,17.0,23.654,23.635,20.0]
[1673900726054,20.0,23.653,23.635,20.0]
[1673900726265,17.0,23.652,23.635,20.0]
[1673900726476,20.0,23.651,23.635,20.0]
[1673900727335,20.0,23.651,23.636,17.0]
[1673900727525,20.0,23.653,23.636,17.0]
[1673900728157,20.0,23.654,23.636,17.0]
[1673900728379,20.0,23.659,23.636,38.46196354]
[1673900728577,20.0,23.659,23.637,40.0]
[1673900728796,20.0,23.659,23.638,17.0]
[1673900729121,20.0,23.659,23.639,20.0]
[1673900729329,20.0,23.659,23.64,17.0]
[1673900730487,114.8225,23.66,23.641,41.46196354]
[1673900730699,20.0,23.659,23.642,17.0]
[1673900730890,20.0,23.659,23.643,20.0]
[1673900731097,20.0,23.659,23.645,20.0]
[1673900731310,20.0,23.659,23.646,17.0]
[1673900731729,20.0,23.664,23.646,17.0]
[1673900732251,20.0,23.663,23.646,17.0]
[1673900732467,20.0,23.663,23.644,17.0]
[1673900732684,20.0,23.661,23.644,17.0]
[1673900733108,20.0,23.66,23.644,17.0]
[1673900733751,20.0,23.66,23.642,17.0]
[1673900734061,20.0,23.659,23.642,17.0]
[1673900734376,20.0,23.659,23.639,40.96196354]
[1673900734781,20.0,23.659,23.639,19.5]
[1673900735843,20.0,23.659,23.64,17.0]
[1673900740371,20.0,23.659,23.64,20.0]
[1673900740586,20.0,23.659,23.641,17.0]
[1673900742062,17.0,23.658,23.638,111.9487]
[1673900742470,20.0,23.657,23.638,111.9487]
[1673900742780,17.0,23.656,23.638,111.9487]
[1673900743011,20.0,23.657,23.638,111.9487]
[1673900743226,20.0,23.657,23.639,20.0]
[1673900743428,20.0,23.657,23.64,17.0]
[1673900746466,20.0,23.657,23.639,17.0]
[1673900746682,20.0,23.657,23.639,37.0]
[1673900747647,20.0,23.657,23.639,17.0]
[1673900754994,20.0,23.657,23.639,37.0]
[1673900755208,20.0,23.657,23.639,17.0]
[1673900755514,20.0,23.659,23.638,111.9487]
[1673900756998,20.0,23.657,23.639,17.0]
[1673900757724,137.1434,23.66,23.639,17.0]
[1673900757930,137.1434,23.66,23.64,20.0]
[1673900758140,20.0,23.659,23.641,17.0]
[1673900759300,137.1434,23.66,23.642,20.0]
[1673900759497,137.1434,23.66,23.643,17.0]
[1673900759710,117.1434,23.66,23.643,17.0]
[1673900759915,394.3,23.666,23.643,47.20497838]
[1673900760128,20.0,23.665,23.645,20.0]
[1673900760451,20.0,23.665,23.646,37.0]
[1673900761916,131.897,23.673,23.647,20.0]
[1673900762251,131.897,23.673,23.649,20.0]
[1673900762474,131.897,23.673,23.65,17.0]
[1673900762683,131.897,23.673,23.651,20.0]
[1673900762992,131.897,23.673,23.652,17.0]
[1673900763838,131.897,23.673,23.652,47.20497838]
[1673900765623,20.0,23.668,23.652,47.20497838]
[1673900765811,17.0,23.667,23.649,35.61841504]
[1673900766021,20.0,23.665,23.648,113.2038]
[1673900766249,20.0,23.664,23.648,113.2038]
[1673900767309,20.0,23.664,23.649,17.0]
[1673900768861,20.0,23.663,23.648,113.2038]
[1673900769081,20.0,23.661,23.648,113.2038]
[1673900769274,20.0,23.663,23.648,113.2038]
[1673900769275,20.0,23.66,23.648,113.2038]
[1673900769484,20.0,23.66,23.647,110.504]
[1673900769711,20.0,23.662,23.647,110.504]
[1673900770327,20.0,23.662,23.648,37.0]
[1673900770863,20.0,23.662,23.648,17.0]
[1673900771499,394.3,23.679,23.648,17.0]
[1673900771713,111.897,23.673,23.649,30.20497838]
[1673900772022,111.897,23.673,23.651,20.0]
[1673900772450,111.897,23.673,23.652,17.0]
[1673900772857,20.0,23.672,23.652,17.0]
[1673900773622,111.897,23.673,23.653,30.20497838]
[1673900773923,20.0,23.672,23.655,20.0]
[1673900774235,118.8718,23.684,23.655,20.0]
[1673900774236,118.8718,23.684,23.656,67.20497838]
[1673900774454,118.8718,23.684,23.656,115.25347962]
[1673900774650,118.8718,23.684,23.657,81.28681296]
[1673900774966,118.8718,23.684,23.659,20.0]
[1673900775158,118.8718,23.684,23.66,146.5483]
[1673900775374,100.9837,23.699,23.661,20.0]
[1673900775710,118.8718,23.696,23.662,37.0]
[1673900776015,20.0,23.695,23.664,20.0]
[1673900776230,20.0,23.695,23.665,20.0]
[1673900776552,20.0,23.695,23.666,52.61841504]
[1673900776761,20.0,23.694,23.668,20.0]
[1673900776944,118.8718,23.696,23.669,37.0]
[1673900777153,118.8718,23.696,23.67,16.16]
[1673900777368,118.8718,23.696,23.671,37.0]
[1673900777584,118.8718,23.696,23.672,20.0]
[1673900777805,118.8718,23.696,23.673,17.0]
[1673900778132,100.9837,23.699,23.674,20.0]
[1673900778319,100.9837,23.699,23.676,20.0]
[1673900778527,100.9837,23.699,23.677,17.0]
[1673900778737,100.9837,23.699,23.677,100.88358295]
[1673900778947,100.9837,23.699,23.678,53.14420905]
[1673900779163,100.9837,23.699,23.679,37.0]
[1673900779392,20.0,23.719,23.68,21.14266]
[1673900779602,111.6043,23.718,23.681,17.0]
[1673900779809,111.6043,23.718,23.682,20.0]
[1673900780124,111.6043,23.718,23.683,37.0]
[1673900780332,111.6043,23.718,23.684,20.0]
[1673900780534,111.6043,23.718,23.69,16.27]
[1673900780853,99.1666,23.738,23.69,16.27]
[1673900780854,20.0,23.737,23.691,17.0]
[1673900781062,131.6043,23.737,23.692,24.87019]
[1673900781271,131.6043,23.737,23.693,41.86998]
[1673900781592,111.6043,23.724,23.693,123.45248229]
[1673900781817,111.6043,23.724,23.694,48.04850124]
[1673900781989,20.0,23.723,23.695,57.0]
[1673900782202,20.0,23.722,23.695,130.09574942]
[1673900782430,20.0,23.722,23.696,121.14425066]
[1673900782638,20.0,23.723,23.698,20.0]
[1673900782845,20.0,23.723,23.699,20.0]
[1673900783063,40.26408768,23.723,23.7,20.0]
[1673900783271,40.26408768,23.723,23.7,68.04850124]
[1673900783489,40.26408768,23.723,23.701,17.0]
[1673900783689,20.0,23.723,23.702,20.0]
[1673900783909,20.0,23.723,23.703,17.0]
[1673900784214,20.26408768,23.729,23.703,50.53400105]
[1673900784407,20.0,23.728,23.704,53.53400105]
[1673900784618,20.0,23.728,23.705,17.0]
[1673900784871,20.0,23.728,23.706,20.0]
[1673900785054,20.26408768,23.728,23.707,17.0]
[1673900785265,20.0,23.726,23.707,17.0]
[1673900785476,20.0,23.725,23.707,17.0]
[1673900785680,20.0,23.725,23.702,20.0]
[1673900786006,40.26408768,23.725,23.705,48.04850124]
[1673900786205,17.0,23.724,23.705,48.04850124]
[1673900786531,20.0,23.723,23.706,20.0]
[1673900786740,20.0,23.723,23.701,20.0]
[1673900786952,37.0,23.722,23.701,20.0]
[1673900787138,20.0,23.721,23.697,108.0444]
[1673900787353,40.26408768,23.721,23.696,20.0]
[1673900787579,40.26408768,23.72,23.696,20.0]
[1673900787784,20.0,23.719,23.696,20.0]
[1673900787992,40.26408768,23.719,23.696,20.0]
[1673900788209,20.0,23.719,23.696,20.0]
[1673900788418,20.0,23.721,23.696,41.46196354]
[1673900788656,20.0,23.721,23.697,21.46196354]
[1673900789189,20.0,23.721,23.698,40.0]
[1673900789378,20.0,23.724,23.699,17.0]
[1673900789587,20.0,23.732,23.699,155.9712062]
[1673900789822,20.0,23.732,23.7,129.49129849]
[1673900789823,20.0,23.731,23.7,129.49129849]
[1673900790005,20.0,23.73,23.701,17.0]
[1673900790216,20.0,23.73,23.702,20.0]